{"text_format":"3","workbook":"xlsx","n_sheets":1,"sheets":["Aasta ajaarvestusleht"],"not_rendered":{"defined_names":2},"read":"whole","date_system":"1900"}

{"sheet":"Aasta ajaarvestusleht","index":0,"n_rows":140,"n_cols":12,"rows_kept":140,"merged":[[0,1,1,11],[2,6,2,7],[2,8,2,9],[5,1,5,11],[15,3,15,4],[26,3,26,4],[37,3,37,4],[39,1,39,11],[49,3,49,4],[60,3,60,4],[71,3,71,4],[73,1,73,11],[83,3,83,4],[94,3,94,4],[105,3,105,4],[107,1,107,11],[117,3,117,4],[128,3,128,4],[139,3,139,4]]}
[null,"Töötaja ajatabel"]
[]
[null,"Töötaja nimi:",null,"Meiliaadress:",null,null,"Aasta senine kokkuvõte:"]
[null,"Juhataja:",null,"Telefon:",null,null,"Korralised tunnid:",{"$f":"SUM(C16,C27,C38,C50,C61,C72,C84,C95,C106,C118,C129,C140)","v":0},"Ületunnid:",{"$f":"SUM(F16,F27,F38,F50,F61,F72,F84,F95,F106,F118,F129,F140)","v":0},"Kokku:",{"$f":"SUM(H4,J4)","v":0}]
[]
[null,"Jaanuar, veebruar, märts      Töötaja ajatabel: päevas, nädalas, kuus, aastas"]
[null,"Jaanuar","1. nädal","Ületunnitöö","2. nädal","Ületunnid ","3. nädal","Ületunnid  ","4. nädal","Ületunnid   ","5. nädal","Ületunnid    "]
[null,"Esmaspäev"]
[null,"Teisipäev"]
[null,"Kolmapäev"]
[null,"Neljapäev"]
[null,"Reede"]
[null,"Laupäev"]
[null,"Pühapäev"]
[null,"Nädala töötunnid kokku",{"$f":"SUBTOTAL(109,Jaanuar[1. nädal])","v":0},{"$f":"SUBTOTAL(109,Jaanuar[Ületunnitöö])","v":0},{"$f":"SUBTOTAL(109,Jaanuar[2. nädal])","v":0},{"$f":"SUBTOTAL(109,Jaanuar[[Ületunnid ]])","v":0},{"$f":"SUBTOTAL(109,Jaanuar[3. nädal])","v":0},{"$f":"SUBTOTAL(109,Jaanuar[[Ületunnid  ]])","v":0},{"$f":"SUBTOTAL(109,Jaanuar[4. nädal])","v":0},{"$f":"SUBTOTAL(109,Jaanuar[[Ületunnid   ]])","v":0},{"$f":"SUBTOTAL(109,Jaanuar[5. nädal])","v":0},{"$f":"SUBTOTAL(109,Jaanuar[[Ületunnid    ]])","v":0}]
[null,"Jaanuaris kokku: Korralised töötunnid",{"$f":"SUM(Jaanuar[[#Totals],[1. nädal]],Jaanuar[[#Totals],[2. nädal]],Jaanuar[[#Totals],[3. nädal]],Jaanuar[[#Totals],[4. nädal]],Jaanuar[[#Totals],[5. nädal]])","v":0},"Jaanuaris kokku: Ületunnitöö",null,{"$f":"SUM(Jaanuar[[#Totals],[Ületunnitöö]],Jaanuar[[#Totals],[Ületunnid ]],Jaanuar[[#Totals],[Ületunnid  ]],Jaanuar[[#Totals],[Ületunnid   ]],Jaanuar[[#Totals],[Ületunnid    ]])","v":0}]
[]
[null,"Veebruar","1. nädal","Ületunnitöö","2. nädal","Ületunnid ","3. nädal","Ületunnid  ","4. nädal","Ületunnid   ","5. nädal","Ületunnid    "]
[null,"Esmaspäev"]
[null,"Teisipäev"]
[null,"Kolmapäev"]
[null,"Neljapäev"]
[null,"Reede"]
[null,"Laupäev"]
[null,"Pühapäev"]
[null,"Nädala töötunnid kokku",{"$f":"SUBTOTAL(109,Veebruar[1. nädal])","v":0},{"$f":"SUBTOTAL(109,Veebruar[Ületunnitöö])","v":0},{"$f":"SUBTOTAL(109,Veebruar[2. nädal])","v":0},{"$f":"SUBTOTAL(109,Veebruar[[Ületunnid ]])","v":0},{"$f":"SUBTOTAL(109,Veebruar[3. nädal])","v":0},{"$f":"SUBTOTAL(109,Veebruar[[Ületunnid  ]])","v":0},{"$f":"SUBTOTAL(109,Veebruar[4. nädal])","v":0},{"$f":"SUBTOTAL(109,Veebruar[[Ületunnid   ]])","v":0},{"$f":"SUBTOTAL(109,Veebruar[5. nädal])","v":0},{"$f":"SUBTOTAL(109,Veebruar[[Ületunnid    ]])","v":0}]
[null,"Veebruaris kokku: Korralised töötunnid",{"$f":"SUM(Veebruar[[#Totals],[1. nädal]],Veebruar[[#Totals],[2. nädal]],Veebruar[[#Totals],[3. nädal]],Veebruar[[#Totals],[4. nädal]],Veebruar[[#Totals],[5. nädal]])","v":0},"Veebruaris kokku: Ületunnitöö",null,{"$f":"SUM(Veebruar[[#Totals],[Ületunnitöö]],Veebruar[[#Totals],[Ületunnid ]],Veebruar[[#Totals],[Ületunnid  ]],Veebruar[[#Totals],[Ületunnid   ]],Veebruar[[#Totals],[Ületunnid    ]])","v":0}]
[]
[null,"Märts","1. nädal","Ületunnitöö","2. nädal","Ületunnid ","3. nädal","Ületunnid  ","4. nädal","Ületunnid   ","5. nädal","Ületunnid    "]
[null,"Esmaspäev"]
[null,"Teisipäev"]
[null,"Kolmapäev"]
[null,"Neljapäev"]
[null,"Reede"]
[null,"Laupäev"]
[null,"Pühapäev"]
[null,"Nädala töötunnid kokku",{"$f":"SUBTOTAL(109,Märts[1. nädal])","v":0},{"$f":"SUBTOTAL(109,Märts[Ületunnitöö])","v":0},{"$f":"SUBTOTAL(109,Märts[2. nädal])","v":0},{"$f":"SUBTOTAL(109,Märts[[Ületunnid ]])","v":0},{"$f":"SUBTOTAL(109,Märts[3. nädal])","v":0},{"$f":"SUBTOTAL(109,Märts[[Ületunnid  ]])","v":0},{"$f":"SUBTOTAL(109,Märts[4. nädal])","v":0},{"$f":"SUBTOTAL(109,Märts[[Ületunnid   ]])","v":0},{"$f":"SUBTOTAL(109,Märts[5. nädal])","v":0},{"$f":"SUBTOTAL(109,Märts[[Ületunnid    ]])","v":0}]
[null,"Märtsis kokku: Korralised töötunnid",{"$f":"SUM(Märts[[#Totals],[1. nädal]],Märts[[#Totals],[2. nädal]],Märts[[#Totals],[3. nädal]],Märts[[#Totals],[4. nädal]],Märts[[#Totals],[5. nädal]])","v":0},"Märtsis kokku: Ületunnitöö",null,{"$f":"SUM(Märts[[#Totals],[Ületunnitöö]],Märts[[#Totals],[Ületunnid ]],Märts[[#Totals],[Ületunnid  ]],Märts[[#Totals],[Ületunnid   ]],Märts[[#Totals],[Ületunnid    ]])","v":0}]
[]
[null,"Aprill, mai, juuni      Töötaja ajatabel: päevas, nädalas, kuus, aastas"]
[null,"Aprill","1. nädal","Ületunnitöö","2. nädal","Ületunnid ","3. nädal","Ületunnid  ","4. nädal","Ületunnid   ","5. nädal","Ületunnid    "]
[null,"Esmaspäev"]
[null,"Teisipäev"]
[null,"Kolmapäev"]
[null,"Neljapäev"]
[null,"Reede"]
[null,"Laupäev"]
[null,"Pühapäev"]
[null,"Nädala töötunnid kokku",{"$f":"SUBTOTAL(109,Aprill[1. nädal])","v":0},{"$f":"SUBTOTAL(109,Aprill[Ületunnitöö])","v":0},{"$f":"SUBTOTAL(109,Aprill[2. nädal])","v":0},{"$f":"SUBTOTAL(109,Aprill[[Ületunnid ]])","v":0},{"$f":"SUBTOTAL(109,Aprill[3. nädal])","v":0},{"$f":"SUBTOTAL(109,Aprill[[Ületunnid  ]])","v":0},{"$f":"SUBTOTAL(109,Aprill[4. nädal])","v":0},{"$f":"SUBTOTAL(109,Aprill[[Ületunnid   ]])","v":0},{"$f":"SUBTOTAL(109,Aprill[5. nädal])","v":0},{"$f":"SUBTOTAL(109,Aprill[[Ületunnid    ]])","v":0}]
[null,"Aprillis kokku: Korralised töötunnid",{"$f":"SUM(Aprill[[#Totals],[1. nädal]],Aprill[[#Totals],[2. nädal]],Aprill[[#Totals],[3. nädal]],Aprill[[#Totals],[4. nädal]],Aprill[[#Totals],[5. nädal]])","v":0},"Aprillis kokku: Ületunnitöö",null,{"$f":"SUM(Aprill[[#Totals],[Ületunnitöö]],Aprill[[#Totals],[Ületunnid ]],Aprill[[#Totals],[Ületunnid  ]],Aprill[[#Totals],[Ületunnid   ]],Aprill[[#Totals],[Ületunnid    ]])","v":0}]
[]
[null,"Mai","1. nädal","Ületunnitöö","2. nädal","Ületunnid ","3. nädal","Ületunnid  ","4. nädal","Ületunnid   ","5. nädal","Ületunnid    "]
[null,"Esmaspäev"]
[null,"Teisipäev"]
[null,"Kolmapäev"]
[null,"Neljapäev"]
[null,"Reede"]
[null,"Laupäev"]
[null,"Pühapäev"]
[null,"Nädala töötunnid kokku",{"$f":"SUBTOTAL(109,Mai[1. nädal])","v":0},{"$f":"SUBTOTAL(109,Mai[Ületunnitöö])","v":0},{"$f":"SUBTOTAL(109,Mai[2. nädal])","v":0},{"$f":"SUBTOTAL(109,Mai[[Ületunnid ]])","v":0},{"$f":"SUBTOTAL(109,Mai[3. nädal])","v":0},{"$f":"SUBTOTAL(109,Mai[[Ületunnid  ]])","v":0},{"$f":"SUBTOTAL(109,Mai[4. nädal])","v":0},{"$f":"SUBTOTAL(109,Mai[[Ületunnid   ]])","v":0},{"$f":"SUBTOTAL(109,Mai[5. nädal])","v":0},{"$f":"SUBTOTAL(109,Mai[[Ületunnid    ]])","v":0}]
[null,"Mais kokku: Korralised töötunnid",{"$f":"SUM(Mai[[#Totals],[1. nädal]],Mai[[#Totals],[2. nädal]],Mai[[#Totals],[3. nädal]],Mai[[#Totals],[4. nädal]],Mai[[#Totals],[5. nädal]])","v":0},"Mais kokku: Ületunnitöö",null,{"$f":"SUM(Mai[[#Totals],[Ületunnitöö]],Mai[[#Totals],[Ületunnid ]],Mai[[#Totals],[Ületunnid  ]],Mai[[#Totals],[Ületunnid   ]],Mai[[#Totals],[Ületunnid    ]])","v":0}]
[]
[null,"Juuni","1. nädal","Ületunnitöö","2. nädal","Ületunnid ","3. nädal","Ületunnid  ","4. nädal","Ületunnid   ","5. nädal","Ületunnid    "]
[null,"Esmaspäev"]
[null,"Teisipäev"]
[null,"Kolmapäev"]
[null,"Neljapäev"]
[null,"Reede"]
[null,"Laupäev"]
[null,"Pühapäev"]
[null,"Nädala töötunnid kokku",{"$f":"SUBTOTAL(109,Juuni[1. nädal])","v":0},{"$f":"SUBTOTAL(109,Juuni[Ületunnitöö])","v":0},{"$f":"SUBTOTAL(109,Juuni[2. nädal])","v":0},{"$f":"SUBTOTAL(109,Juuni[[Ületunnid ]])","v":0},{"$f":"SUBTOTAL(109,Juuni[3. nädal])","v":0},{"$f":"SUBTOTAL(109,Juuni[[Ületunnid  ]])","v":0},{"$f":"SUBTOTAL(109,Juuni[4. nädal])","v":0},{"$f":"SUBTOTAL(109,Juuni[[Ületunnid   ]])","v":0},{"$f":"SUBTOTAL(109,Juuni[5. nädal])","v":0},{"$f":"SUBTOTAL(109,Juuni[[Ületunnid    ]])","v":0}]
[null,"Juunis kokku: Korralised töötunnid",{"$f":"SUM(Juuni[[#Totals],[1. nädal]],Juuni[[#Totals],[2. nädal]],Juuni[[#Totals],[3. nädal]],Juuni[[#Totals],[4. nädal]],Juuni[[#Totals],[5. nädal]])","v":0},"Juunis kokku: Ületunnitöö",null,{"$f":"SUM(Juuni[[#Totals],[Ületunnitöö]],Juuni[[#Totals],[Ületunnid ]],Juuni[[#Totals],[Ületunnid  ]],Juuni[[#Totals],[Ületunnid   ]],Juuni[[#Totals],[Ületunnid    ]])","v":0}]
[]
[null,"Juuli, August, September      Töötaja ajatabel: päevas, nädalas, kuus, aastas"]
[null,"Juuli","1. nädal","Ületunnitöö","2. nädal","Ületunnid ","3. nädal","Ületunnid  ","4. nädal","Ületunnid   ","5. nädal","Ületunnid    "]
[null,"Esmaspäev"]
[null,"Teisipäev"]
[null,"Kolmapäev"]
[null,"Neljapäev"]
[null,"Reede"]
[null,"Laupäev"]
[null,"Pühapäev"]
[null,"Nädala töötunnid kokku",{"$f":"SUBTOTAL(109,Juuli[1. nädal])","v":0},{"$f":"SUBTOTAL(109,Juuli[Ületunnitöö])","v":0},{"$f":"SUBTOTAL(109,Juuli[2. nädal])","v":0},{"$f":"SUBTOTAL(109,Juuli[[Ületunnid ]])","v":0},{"$f":"SUBTOTAL(109,Juuli[3. nädal])","v":0},{"$f":"SUBTOTAL(109,Juuli[[Ületunnid  ]])","v":0},{"$f":"SUBTOTAL(109,Juuli[4. nädal])","v":0},{"$f":"SUBTOTAL(109,Juuli[[Ületunnid   ]])","v":0},{"$f":"SUBTOTAL(109,Juuli[5. nädal])","v":0},{"$f":"SUBTOTAL(109,Juuli[[Ületunnid    ]])","v":0}]
[null,"Juulis kokku: Korralised töötunnid",{"$f":"SUM(Juuli[[#Totals],[1. nädal]],Juuli[[#Totals],[2. nädal]],Juuli[[#Totals],[3. nädal]],Juuli[[#Totals],[4. nädal]],Juuli[[#Totals],[5. nädal]])","v":0},"Juulis kokku: Ületunnitöö",null,{"$f":"SUM(Juuli[[#Totals],[Ületunnitöö]],Juuli[[#Totals],[Ületunnid ]],Juuli[[#Totals],[Ületunnid  ]],Juuli[[#Totals],[Ületunnid   ]],Juuli[[#Totals],[Ületunnid    ]])","v":0}]
[]
[null,"August","1. nädal","Ületunnitöö","2. nädal","Ületunnid ","3. nädal","Ületunnid  ","4. nädal","Ületunnid   ","5. nädal","Ületunnid    "]
[null,"Esmaspäev"]
[null,"Teisipäev"]
[null,"Kolmapäev"]
[null,"Neljapäev"]
[null,"Reede"]
[null,"Laupäev"]
[null,"Pühapäev"]
[null,"Nädala töötunnid kokku",{"$f":"SUBTOTAL(109,August[1. nädal])","v":0},{"$f":"SUBTOTAL(109,August[Ületunnitöö])","v":0},{"$f":"SUBTOTAL(109,August[2. nädal])","v":0},{"$f":"SUBTOTAL(109,August[[Ületunnid ]])","v":0},{"$f":"SUBTOTAL(109,August[3. nädal])","v":0},{"$f":"SUBTOTAL(109,August[[Ületunnid  ]])","v":0},{"$f":"SUBTOTAL(109,August[4. nädal])","v":0},{"$f":"SUBTOTAL(109,August[[Ületunnid   ]])","v":0},{"$f":"SUBTOTAL(109,August[5. nädal])","v":0},{"$f":"SUBTOTAL(109,August[[Ületunnid    ]])","v":0}]
[null,"Augustis kokku: Korralised töötunnid",{"$f":"SUM(August[[#Totals],[1. nädal]],August[[#Totals],[2. nädal]],August[[#Totals],[3. nädal]],August[[#Totals],[4. nädal]],August[[#Totals],[5. nädal]])","v":0},"Augustis kokku: Ületunnitöö",null,{"$f":"SUM(August[[#Totals],[Ületunnitöö]],August[[#Totals],[Ületunnid ]],August[[#Totals],[Ületunnid  ]],August[[#Totals],[Ületunnid   ]],August[[#Totals],[Ületunnid    ]])","v":0}]
[]
[null,"September","1. nädal","Ületunnitöö","2. nädal","Ületunnid ","3. nädal","Ületunnid  ","4. nädal","Ületunnid   ","5. nädal","Ületunnid    "]
[null,"Esmaspäev"]
[null,"Teisipäev"]
[null,"Kolmapäev"]
[null,"Neljapäev"]
[null,"Reede"]
[null,"Laupäev"]
[null,"Pühapäev"]
[null,"Nädala töötunnid kokku",{"$f":"SUBTOTAL(109,September[1. nädal])","v":0},{"$f":"SUBTOTAL(109,September[Ületunnitöö])","v":0},{"$f":"SUBTOTAL(109,September[2. nädal])","v":0},{"$f":"SUBTOTAL(109,September[[Ületunnid ]])","v":0},{"$f":"SUBTOTAL(109,September[3. nädal])","v":0},{"$f":"SUBTOTAL(109,September[[Ületunnid  ]])","v":0},{"$f":"SUBTOTAL(109,September[4. nädal])","v":0},{"$f":"SUBTOTAL(109,September[[Ületunnid   ]])","v":0},{"$f":"SUBTOTAL(109,September[5. nädal])","v":0},{"$f":"SUBTOTAL(109,September[[Ületunnid    ]])","v":0}]
[null,"Septembris kokku: Korralised töötunnid",{"$f":"SUM(September[[#Totals],[1. nädal]],September[[#Totals],[2. nädal]],September[[#Totals],[3. nädal]],September[[#Totals],[4. nädal]],September[[#Totals],[5. nädal]])","v":0},"Septembris kokku: Ületunnitöö",null,{"$f":"SUM(September[[#Totals],[Ületunnitöö]],September[[#Totals],[Ületunnid ]],September[[#Totals],[Ületunnid  ]],September[[#Totals],[Ületunnid   ]],September[[#Totals],[Ületunnid    ]])","v":0}]
[]
[null,"Oktoober, november, detsember      Töötaja ajatabel: päevas, nädalas, kuus, aastas"]
[null,"Oktoober","1. nädal","Ületunnitöö","2. nädal","Ületunnid ","3. nädal","Ületunnid  ","4. nädal","Ületunnid   ","5. nädal","Ületunnid    "]
[null,"Esmaspäev"]
[null,"Teisipäev"]
[null,"Kolmapäev"]
[null,"Neljapäev"]
[null,"Reede"]
[null,"Laupäev"]
[null,"Pühapäev"]
[null,"Nädala töötunnid kokku",{"$f":"SUBTOTAL(109,Oktoober[1. nädal])","v":0},{"$f":"SUBTOTAL(109,Oktoober[Ületunnitöö])","v":0},{"$f":"SUBTOTAL(109,Oktoober[2. nädal])","v":0},{"$f":"SUBTOTAL(109,Oktoober[[Ületunnid ]])","v":0},{"$f":"SUBTOTAL(109,Oktoober[3. nädal])","v":0},{"$f":"SUBTOTAL(109,Oktoober[[Ületunnid  ]])","v":0},{"$f":"SUBTOTAL(109,Oktoober[4. nädal])","v":0},{"$f":"SUBTOTAL(109,Oktoober[[Ületunnid   ]])","v":0},{"$f":"SUBTOTAL(109,Oktoober[5. nädal])","v":0},{"$f":"SUBTOTAL(109,Oktoober[[Ületunnid    ]])","v":0}]
[null,"Oktoobris kokku: Korralised töötunnid",{"$f":"SUM(Oktoober[[#Totals],[1. nädal]],Oktoober[[#Totals],[2. nädal]],Oktoober[[#Totals],[3. nädal]],Oktoober[[#Totals],[4. nädal]],Oktoober[[#Totals],[5. nädal]])","v":0},"Oktoobris kokku: Ületunnitöö",null,{"$f":"SUM(Oktoober[[#Totals],[Ületunnitöö]],Oktoober[[#Totals],[Ületunnid ]],Oktoober[[#Totals],[Ületunnid  ]],Oktoober[[#Totals],[Ületunnid   ]],Oktoober[[#Totals],[Ületunnid    ]])","v":0}]
[]
[null,"November","1. nädal","Ületunnitöö","2. nädal","Ületunnid ","3. nädal","Ületunnid  ","4. nädal","Ületunnid   ","5. nädal","Ületunnid    "]
[null,"Esmaspäev"]
[null,"Teisipäev"]
[null,"Kolmapäev"]
[null,"Neljapäev"]
[null,"Reede"]
[null,"Laupäev"]
[null,"Pühapäev"]
[null,"Nädala töötunnid kokku",{"$f":"SUBTOTAL(109,November[1. nädal])","v":0},{"$f":"SUBTOTAL(109,November[Ületunnitöö])","v":0},{"$f":"SUBTOTAL(109,November[2. nädal])","v":0},{"$f":"SUBTOTAL(109,November[[Ületunnid ]])","v":0},{"$f":"SUBTOTAL(109,November[3. nädal])","v":0},{"$f":"SUBTOTAL(109,November[[Ületunnid  ]])","v":0},{"$f":"SUBTOTAL(109,November[4. nädal])","v":0},{"$f":"SUBTOTAL(109,November[[Ületunnid   ]])","v":0},{"$f":"SUBTOTAL(109,November[5. nädal])","v":0},{"$f":"SUBTOTAL(109,November[[Ületunnid    ]])","v":0}]
[null,"Oktoobris kokku: Korralised töötunnid",{"$f":"SUM(November[[#Totals],[1. nädal]],November[[#Totals],[2. nädal]],November[[#Totals],[3. nädal]],November[[#Totals],[4. nädal]],November[[#Totals],[5. nädal]])","v":0},"Oktoobris kokku: Ületunnitöö",null,{"$f":"SUM(November[[#Totals],[Ületunnitöö]],November[[#Totals],[Ületunnid ]],November[[#Totals],[Ületunnid  ]],November[[#Totals],[Ületunnid   ]],November[[#Totals],[Ületunnid    ]])","v":0}]
[]
[null,"Detsember","1. nädal","Ületunnitöö","2. nädal","Ületunnitöö ","3. nädal","Ületunnitöö  ","4. nädal","Ületunnitöö   ","5. nädal","Ületunnid    "]
[null,"Esmaspäev"]
[null,"Teisipäev"]
[null,"Kolmapäev"]
[null,"Neljapäev"]
[null,"Reede"]
[null,"Laupäev"]
[null,"Pühapäev"]
[null,"Nädala töötunnid kokku",{"$f":"SUBTOTAL(109,Detsember[1. nädal])","v":0},{"$f":"SUBTOTAL(109,Detsember[Ületunnitöö])","v":0},{"$f":"SUBTOTAL(109,Detsember[2. nädal])","v":0},{"$f":"SUBTOTAL(109,Detsember[[Ületunnitöö ]])","v":0},{"$f":"SUBTOTAL(109,Detsember[3. nädal])","v":0},{"$f":"SUBTOTAL(109,Detsember[[Ületunnitöö  ]])","v":0},{"$f":"SUBTOTAL(109,Detsember[4. nädal])","v":0},{"$f":"SUBTOTAL(109,Detsember[[Ületunnitöö   ]])","v":0},{"$f":"SUBTOTAL(109,Detsember[5. nädal])","v":0},{"$f":"SUBTOTAL(109,Detsember[[Ületunnid    ]])","v":0}]
[null,"Detsembris kokku: Korralised töötunnid",{"$f":"SUM(Detsember[[#Totals],[1. nädal]],Detsember[[#Totals],[2. nädal]],Detsember[[#Totals],[3. nädal]],Detsember[[#Totals],[4. nädal]],Detsember[[#Totals],[5. nädal]])","v":0},"Detsembris kokku: Ületunnitöö",null,{"$f":"SUM(Detsember[[#Totals],[Ületunnitöö]],Detsember[[#Totals],[Ületunnitöö ]],Detsember[[#Totals],[Ületunnitöö  ]],Detsember[[#Totals],[Ületunnitöö   ]],Detsember[[#Totals],[Ületunnid    ]])","v":0}]